bitfinex-derivatives/quotes_BTCF0:USTF0_20251228
["timestamp","ask_amount","ask_price","bid_price","bid_amount"]
[1766880000705,0.00022734,87974.0,87858.0,0.40654341]
[1766880001501,0.00017064,87925.0,87907.0,0.00017064]
[1766880002515,6.4e-07,87925.0,87907.0,0.00017064]
[1766880003224,6.4e-07,87925.0,87923.0,0.0113814]
[1766880010608,0.09676,87946.0,87923.0,0.0113814]
[1766880010808,0.01307796,87966.0,87939.0,0.0113794]
[1766880011016,0.1538,87965.0,87935.0,0.0113798]
[1766880011216,0.09676,87964.0,87934.0,0.0113801]
[1766880011610,0.00017054,87958.0,87940.0,0.01154984]
[1766880012012,0.09676,87957.0,87940.0,0.00017054]
[1766880012315,0.09676,87956.0,87944.0,0.0113788]
[1766880012508,4e-08,87958.0,87940.0,0.00017054]
[1766880012817,0.09676,87957.0,87940.0,0.00017054]
[1766880013016,4e-08,87958.0,87953.0,0.0113776]
[1766880013204,4e-08,87958.0,87946.0,0.0113785]
[1766880013406,4e-08,87958.0,87940.0,0.00017054]
[1766880013608,4e-08,87958.0,87954.0,0.0113775]
[1766880013806,4e-08,87958.0,87940.0,0.00017054]
[1766880013807,0.00022734,87974.0,87957.0,0.0113771]
[1766880014212,0.09676,87973.0,87959.0,0.0113767]
[1766880015312,0.09676,87973.0,87964.0,0.0113761]
[1766880015516,0.09672,87973.0,87967.0,0.0113758]
[1766880015914,4e-08,87975.0,87969.0,0.0113754]
[1766880016217,4e-08,87975.0,87968.0,0.0113756]
[1766880016917,0.26573166,88002.0,87957.0,0.00017054]
[1766880016918,3.18e-06,87983.0,87974.0,0.0113748]
[1766880018817,3.18e-06,87983.0,87969.0,0.09672]
[1766880019009,3.18e-06,87983.0,87957.0,0.00017054]
[1766880019010,4e-08,87987.0,87957.0,0.00017054]
[1766880019214,0.08026,87995.0,87984.0,0.0113735]
[1766880019408,0.08026,87995.0,87964.0,0.0113762]
[1766880019620,0.08026,87995.0,87980.0,0.0113741]
[1766880020011,0.53153286,88001.0,87987.0,0.0113731]
[1766880020216,0.1538,88000.0,87983.0,0.0113736]
[1766880020415,0.1538,88000.0,87985.0,0.00017054]
[1766880021319,0.1538,88000.0,87973.0,0.011375]
[1766880022224,0.0113723,87995.0,87973.0,0.011375]
[1766880022423,0.0113723,87995.0,87975.0,0.00017054]
[1766880022631,0.0113734,87986.0,87963.0,0.0113763]
[1766880022928,0.15376,87985.0,87963.0,0.0113763]
[1766880023511,0.15376,87985.0,87949.0,0.09672]
[1766880023730,0.00017054,87976.0,87958.0,0.00017054]
[1766880023915,0.09672,87975.0,87958.0,0.00017054]
[1766880025226,0.05708,87974.0,87962.0,0.0113763]
[1766880026437,0.05708,87974.0,87965.0,0.011376]
[1766880027325,0.05708,87974.0,87958.0,0.00017054]
[1766880027326,0.15376,87979.0,87969.0,0.0113755]
[1766880027516,0.15376,87979.0,87971.0,0.0113752]
[1766880027916,0.15376,87979.0,87963.0,0.01118725]
[1766880027917,0.15376,87981.0,87963.0,0.01118725]
[1766880028117,0.0113722,87996.0,87976.0,0.0113745]
[1766880028318,0.15397054,87995.0,87978.0,0.0113743]
[1766880031928,0.15376,87994.0,87977.0,0.00017054]
[1766880032334,0.15376,87994.0,87987.0,0.0113731]
[1766880032733,0.00017054,87995.0,87977.0,0.00017054]
[1766880032934,0.05708,87994.0,87988.0,0.011373]
[1766880033234,0.05708,87994.0,87977.0,0.00017054]
[1766880034437,0.00017054,87995.0,87978.0,0.0113744]
[1766880034640,0.15372,87994.0,87978.0,0.0113744]
[1766880036537,0.15372,87994.0,87977.0,0.00017054]
[1766880037133,0.00017054,87995.0,87989.0,0.0113729]
[1766880037331,0.00017054,87995.0,87985.0,0.0113733]
[1766880037727,0.00017054,87995.0,87977.0,0.00017054]
[1766880038441,0.0113726,87992.0,87977.0,0.00017054]
[1766880038641,0.00017054,87995.0,87960.0,0.09668]
[1766880038642,0.0113735,87986.0,87960.0,0.09668]
[1766880038830,0.0113735,87986.0,87965.0,0.011376]
[1766880039539,0.0113735,87986.0,87960.0,0.09668]
[1766880039540,0.0113729,87990.0,87968.0,0.0113757]
[1766880040140,0.15376,87991.0,87975.0,0.0113748]
[1766880040539,0.00017054,87995.0,87967.0,0.00017054]
[1766880040540,0.15376,87990.0,87978.0,0.0113744]
[1766880041538,0.00017054,87995.0,87984.0,0.0113735]
[1766880041740,0.05725054,87995.0,87984.0,0.0113735]
[1766880042346,0.05725054,87995.0,87981.0,0.011374]
[1766880044845,0.05725054,87995.0,87968.0,0.05708]
[1766880045148,0.05725054,87995.0,87964.0,0.0113761]
[1766880045350,0.0113736,87985.0,87964.0,0.0113761]
[1766880045540,0.0113739,87983.0,87960.0,0.1320766]
[1766880045736,0.0113753,87972.0,87958.0,0.09668]
[1766880045935,0.09668,87984.0,87953.0,0.05935395]
[1766880045936,0.05708,87973.0,87956.0,0.00017054]
[1766880046141,0.05708,87972.0,87953.0,0.00227395]
[1766880047039,0.05708,87972.0,87954.0,0.0113774]
[1766880047354,0.05708,87972.0,87953.0,0.00227395]
[1766880047646,0.0113753,87971.0,87942.0,0.09668]
[1766880048248,0.0113753,87971.0,87947.0,0.0113783]
[1766880050449,0.0113753,87971.0,87950.0,0.011378]
[1766880050752,0.0113753,87971.0,87947.0,0.0113784]
[1766880051855,0.0113755,87969.0,87942.0,0.09668]
[1766880052450,0.011376,87966.0,87942.0,0.011379]
[1766880052649,0.05708,87965.0,87942.0,0.011379]
[1766880055564,0.05708,87965.0,87944.0,0.0113787]
[1766880055752,0.05708,87965.0,87939.0,0.15875304]
[1766880056261,0.0113751,87973.0,87952.0,0.0113777]
[1766880056449,0.1538,87972.0,87952.0,0.0113777]
[1766880057565,0.00017054,87974.0,87954.0,0.0113774]
[1766880057753,0.1538,87973.0,87958.0,0.011377]
[1766880058453,0.00017054,87974.0,87949.0,0.09672]
[1766880058764,4e-08,87974.0,87966.0,0.0113759]
[1766880059063,4e-08,87974.0,87968.0,0.0113756]
[1766880059262,4e-08,87974.0,87971.0,0.0113752]
[1766880059563,0.00227318,87983.0,87971.0,0.0113752]
[1766880059765,0.05708,87982.0,87971.0,0.0113752]
[1766880061766,0.05708,87982.0,87959.0,0.09672]
[1766880062769,0.05708,87982.0,87950.0,0.05708]
[1766880062770,0.0113747,87976.0,87954.0,0.0113774]
[1766880065858,0.011375,87974.0,87954.0,0.0113774]
[1766880066166,0.0113752,87972.0,87951.0,0.0113779]
[1766880066463,0.09672,87971.0,87951.0,0.0113779]
[1766880066863,0.0113755,87970.0,87947.0,0.0113783]
[1766880067063,0.00017054,87967.0,87947.0,0.0113783]
[1766880067662,0.00017054,87967.0,87946.0,0.0113785]
[1766880067866,0.00017054,87967.0,87948.0,0.0113781]
[1766880071170,0.00017054,87967.0,87945.0,0.0113786]
[1766880071358,0.00017054,87967.0,87947.0,0.0113783]
[1766880072363,0.0113766,87962.0,87941.0,0.0113791]
[1766880072558,0.05708,87961.0,87943.0,0.0113788]
[1766880073369,0.0113739,87982.0,87962.0,0.0113764]
[1766880073671,0.165214,87981.0,87960.0,0.0113766]
[1766880073969,0.15384,87981.0,87958.0,0.0113769]
[1766880074162,0.15384,87981.0,87954.0,0.05712]
[1766880074469,0.00017054,87976.0,87959.0,0.00017054]
[1766880074766,0.00017054,87976.0,87966.0,0.0113758]
[1766880075367,0.00017054,87976.0,87963.0,0.0113763]
[1766880075868,4e-08,87976.0,87972.0,0.0113751]
[1766880076368,4e-08,87976.0,87969.0,0.0113754]
[1766880076861,4e-08,87976.0,87966.0,0.0113759]
[1766880077057,4e-08,87976.0,87968.0,0.0113756]
[1766880077457,4e-08,87976.0,87970.0,0.0113753]
[1766880077656,4e-08,87976.0,87967.0,0.0113758]
[1766880079470,4e-08,87976.0,87970.0,0.0113754]
[1766880079873,4e-08,87976.0,87967.0,0.0113758]
[1766880080062,4e-08,87976.0,87964.0,0.0113762]
[1766880083474,4e-08,87976.0,87959.0,0.00017054]
[1766880084871,0.0113755,87970.0,87949.0,0.011378]
[1766880085169,0.15384,87970.0,87946.0,0.0113785]
[1766880085877,0.15384,87970.0,87949.0,0.0001705]
[1766880086174,0.011376,87966.0,87949.0,0.0001705]
[1766880086675,0.0113756,87969.0,87949.0,0.0001705]
[1766880088180,0.0113759,87967.0,87949.0,0.0001705]
[1766880088879,0.0113762,87965.0,87949.0,0.0001705]
[1766880089677,0.0113757,87968.0,87949.0,0.0001705]
[1766880090065,0.011376,87966.0,87949.0,0.0001705]
[1766880091879,0.0113763,87964.0,87949.0,0.0001705]
[1766880092382,0.011376,87966.0,87949.0,0.0001705]
[1766880092583,0.0113756,87969.0,87949.0,0.0001705]
[1766880093384,0.15384,87970.0,87949.0,0.0115485]
[1766880093585,0.15384,87970.0,87949.0,0.0001705]
[1766880093886,0.15384,87970.0,87951.0,0.0113779]
[1766880094386,0.1652154,87970.0,87949.0,0.0001705]
[1766880095481,0.15384,87970.0,87949.0,0.0001705]
[1766880095680,0.0113756,87969.0,87949.0,0.0001705]
[1766880095876,0.15384,87970.0,87949.0,0.0001705]
[1766880096076,0.1652155,87970.0,87949.0,0.0001705]
[1766880098286,0.15384,87970.0,87949.0,0.0001705]
[1766880098586,0.1652155,87970.0,87949.0,0.0001705]
[1766880099388,0.15384,87970.0,87949.0,0.0115486]
[1766880102694,0.15384,87970.0,87954.0,0.0113774]
[1766880102891,0.15384,87970.0,87956.0,0.0113771]
[1766880103283,0.15384,87970.0,87952.0,0.05708]
[1766880104188,0.15384,87970.0,87956.0,0.0113772]
[1766880104386,0.13092863,87970.0,87958.0,0.0113769]
[1766880105491,0.05708,87974.0,87965.0,0.011376]
[1766880105883,0.05708,87974.0,87967.0,0.0113757]
[1766880106488,4e-08,87976.0,87956.0,0.09672]
[1766880106694,4e-08,87976.0,87971.0,0.0113752]
[1766880107392,4e-08,87976.0,87968.0,0.0113757]
[1766880107594,4e-08,87976.0,87972.0,0.0113751]
[1766880108297,4e-08,87976.0,87968.0,0.0113756]
[1766880109896,4e-08,87976.0,87964.0,0.0113761]
[1766880110199,4e-08,87976.0,87966.0,0.0113758]
[1766880112993,4e-08,87976.0,87961.0,0.05708]
[1766880114389,4e-08,87976.0,87962.0,0.0113764]
[1766880114596,4e-08,87976.0,87972.0,0.0113751]
[1766880114795,4e-08,87976.0,87969.0,0.0113755]
[1766880116097,4e-08,87976.0,87967.0,0.09668]
[1766880116401,4e-08,87976.0,87968.0,0.0113757]
[1766880117699,4e-08,87976.0,87969.0,0.05708]
[1766880118000,4e-08,87976.0,87970.0,0.0113754]
[1766880120504,4e-08,87976.0,87969.0,0.05708]
[1766880121705,4e-08,87976.0,87971.0,0.0113752]
[1766880122703,4e-08,87976.0,87973.0,0.011375]
[1766880123798,0.01306919,87992.0,87969.0,0.05708]
[1766880123993,0.0113717,87999.0,87979.0,0.0113742]
[1766880124194,0.0113717,87999.0,87980.0,0.05704]
[1766880124803,0.00017054,87998.0,87981.0,0.00017054]
[1766880127007,0.011372,87997.0,87981.0,0.00017054]
[1766880127505,0.00017054,87998.0,87981.0,0.00017054]
[1766880129810,0.00017054,87998.0,87981.0,0.01154444]
[1766880130811,0.00017054,87998.0,87981.0,0.00017054]
[1766880131205,0.00017054,87998.0,87988.0,0.011373]
[1766880131711,0.00017054,87998.0,87990.0,0.0113727]
[1766880132710,0.00017054,87998.0,87981.0,0.00017054]
[1766880132711,4e-08,87998.0,87995.0,0.0113722]
[1766880133097,0.05704,88009.0,88000.0,0.0113714]
[1766880133812,0.05704,88009.0,87996.0,0.0113719]
[1766880134614,0.05704,88009.0,87998.0,0.0113717]
[1766880135515,0.09668,88010.0,87998.0,0.0113717]
[1766880135516,0.05704,88010.0,87998.0,0.0113717]
[1766880135909,0.00017054,88011.0,88001.0,0.0113714]
[1766880136108,0.01329437,88018.0,87986.0,0.09668]
[1766880136109,0.05704,88012.0,87997.0,0.0113718]
[1766880136711,0.00022723,88018.0,87986.0,0.09668]
[1766880137111,0.00017054,88008.0,87988.0,0.0113731]
[1766880137417,0.0113712,88003.0,87983.0,0.0113736]
[1766880137618,0.0113718,87998.0,87975.0,0.09668]
[1766880137809,0.0113718,87998.0,87975.0,0.1080548]
[1766880137810,0.15372,87997.0,87975.0,0.1080548]
[1766880138323,0.15372,87997.0,87975.0,0.09668]
[1766880138517,0.0113725,87993.0,87970.0,0.0113754]
[1766880138817,0.1650921,87997.0,87973.0,0.011375]
[1766880139520,0.00017054,87994.0,87976.0,0.00017054]
[1766880139916,0.00017054,87994.0,87962.0,0.0113764]
[1766880140119,0.0113737,87984.0,87959.0,0.0113768]
[1766880140427,0.15372,87983.0,87958.0,0.108057]
[1766880140629,0.09668,87982.0,87958.0,0.108057]
[1766880140921,0.09668,87982.0,87961.0,0.01154714]
[1766880141221,0.09668,87982.0,87961.0,0.00017054]
[1766880141721,0.0113741,87981.0,87961.0,0.00017054]
[1766880142226,0.0113744,87978.0,87961.0,0.00017054]
[1766880143425,0.108054,87982.0,87961.0,0.00017054]
[1766880147829,0.0113745,87977.0,87953.0,0.01365155]
[1766880148124,0.0113745,87977.0,87956.0,0.0113772]
[1766880148326,0.15372,87976.0,87956.0,0.0113772]
[1766880148721,0.00017054,87975.0,87956.0,0.0113772]
[1766880149921,0.01154544,87975.0,87953.0,0.00227395]
[1766880150227,0.0113754,87970.0,87943.0,0.09668]
[1766880150426,0.0113754,87970.0,87948.0,0.0113782]
[1766880153429,0.0113757,87968.0,87943.0,0.09668]
[1766880153628,0.05704,87969.0,87943.0,0.09668]
[1766880154627,0.00017054,87975.0,87943.0,0.1080588]
[1766880154930,0.15372,87974.0,87943.0,0.1080588]
[1766880155738,0.0113759,87967.0,87945.0,0.0113786]
[1766880156125,0.0113762,87965.0,87945.0,0.0113786]
[1766880156321,0.0113764,87963.0,87944.0,0.0113787]
[1766880156526,0.0113767,87961.0,87940.0,0.0684192]
[1766880156827,0.1650962,87964.0,87942.0,0.0113789]
[1766880157733,0.15372,87964.0,87941.0,0.011379]
[1766880159034,0.0113765,87962.0,87941.0,0.011379]
[1766880159335,0.15372,87964.0,87941.0,0.011379]
[1766880160634,0.15372,87964.0,87936.0,0.09668]
[1766880162235,0.15372,87964.0,87945.0,0.0113785]
[1766880162637,0.15372,87964.0,87936.0,0.09668]
[1766880163136,0.15372,87964.0,87944.0,0.0113787]
[1766880166242,0.1650963,87964.0,87941.0,0.0113791]
[1766880166934,0.0113767,87960.0,87938.0,0.0113795]
[1766880167129,0.0113767,87960.0,87940.0,0.0113792]
[1766880167329,0.00017054,87959.0,87940.0,0.0113792]
[1766880172842,0.01154744,87959.0,87940.0,0.0113792]
[1766880173244,0.00017054,87959.0,87940.0,0.0113792]
[1766880175548,0.00017054,87959.0,87937.0,0.0113796]
[1766880175845,0.00017054,87959.0,87929.0,0.09672]
[1766880175846,0.00017054,87959.0,87939.0,0.0113793]
[1766880176043,0.011377,87958.0,87936.0,0.0113797]
[1766880177244,0.011377,87958.0,87938.0,0.0113795]
[1766880178651,0.00017054,87959.0,87940.0,0.0113792]
[1766880184167,0.01154744,87959.0,87937.0,0.0113796]
[1766880184359,0.0113772,87957.0,87937.0,0.0113796]
[1766880185268,0.00017054,87959.0,87939.0,0.0113794]
[1766880185459,0.011377,87958.0,87939.0,0.0113794]
[1766880185663,0.011377,87958.0,87936.0,0.0113798]
[1766880185969,0.00017054,87959.0,87938.0,0.0113795]
[1766880186164,0.00017054,87959.0,87940.0,0.0113792]
[1766880187472,0.011377,87958.0,87936.0,0.0113797]
[1766880189771,0.00017054,87959.0,87929.0,0.21742]
[1766880189975,0.10312,87958.0,87949.0,0.0113781]
[1766880190870,0.10312,87958.0,87947.0,0.0113784]
[1766880192873,0.00017054,87959.0,87947.0,0.0113784]
[1766880193074,0.15376,87958.0,87947.0,0.0113784]
[1766880197981,0.0113773,87956.0,87941.0,0.01307486]
[1766880198167,0.15376,87958.0,87938.0,0.0113795]
[1766880198373,0.0113772,87957.0,87938.0,0.0113795]
[1766880198776,0.165137,87958.0,87937.0,0.0113796]
[1766880198982,0.15376,87958.0,87937.0,0.0113796]
[1766880199280,0.0113773,87956.0,87937.0,0.0113796]
[1766880199584,0.11388,87955.0,87937.0,0.0113796]
[1766880201482,0.0113775,87954.0,87935.0,0.09672]
[1766880202382,0.11388,87955.0,87936.0,0.0113798]
[1766880205084,0.1252574,87955.0,87935.0,0.09672]
[1766880207082,0.1252574,87955.0,87935.0,0.1080999]
[1766880207384,0.11388,87955.0,87935.0,0.1080999]
[1766880209887,0.0113776,87953.0,87934.0,0.1207]
[1766880213392,0.0113776,87953.0,87931.0,0.0113803]
[1766880213892,0.0113781,87950.0,87929.0,0.1207]
[1766880215196,0.0113781,87950.0,87930.0,0.0113805]
[1766880219299,0.0113781,87950.0,87930.0,0.1320805]
[1766880220692,0.0113781,87950.0,87930.0,0.1207]
[1766880221099,0.11388,87955.0,87930.0,0.1207]
[1766880221402,0.11388,87955.0,87925.0,0.01288651]
[1766880221703,0.0113784,87948.0,87926.0,0.0113811]
[1766880221999,0.05704,87947.0,87926.0,0.0113811]
[1766880222392,0.15376,87946.0,87925.0,0.01288651]
[1766880222595,0.15376,87945.0,87925.0,0.01288651]
[1766880222791,0.15376,87945.0,87935.0,0.0113799]
[1766880222997,0.0113771,87958.0,87935.0,0.0113799]
[1766880223184,0.15376,87957.0,87935.0,0.0113799]
[1766880223389,0.15376,87956.0,87926.0,0.0113811]
[1766880224001,0.15376,87956.0,87937.0,0.0113797]
[1766880226304,0.0113775,87955.0,87925.0,0.01288651]
[1766880226505,0.0113775,87955.0,87931.0,0.0113803]
[1766880226894,0.0113775,87955.0,87933.0,0.0113801]
[1766880228604,0.0113777,87953.0,87930.0,0.0113805]
[1766880231207,0.011378,87951.0,87930.0,0.0113805]
[1766880231405,0.011378,87951.0,87927.0,0.0113809]
[1766880233308,0.011378,87951.0,87929.0,0.0113806]
[1766880237412,0.011378,87951.0,87926.0,0.011381]
[1766880238414,0.0113782,87949.0,87926.0,0.011381]
[1766880239708,0.05704,87950.0,87925.0,0.01288651]
[1766880240014,0.0113783,87948.0,87925.0,0.02426771]
[1766880240516,0.05704,87950.0,87927.0,0.0113809]
[1766880240911,0.05704,87950.0,87925.0,0.01288651]
[1766880241216,0.0113785,87947.0,87925.0,0.01288651]
[1766880241416,0.09672,87946.0,87925.0,0.01288651]
[1766880243016,0.0113787,87945.0,87925.0,0.01288651]
[1766880245922,0.09672,87946.0,87925.0,0.01288651]
[1766880246120,0.09672,87946.0,87925.0,0.02426761]
[1766880246415,0.09672,87946.0,87927.0,0.0113809]
[1766880247906,0.0132482,87959.0,87928.0,0.05704]
[1766880248106,0.15376,87958.0,87928.0,0.05704]
[1766880248306,0.15376,87958.0,87937.0,0.0113796]
[1766880248816,0.0113771,87957.0,87936.0,0.0113798]
[1766880250009,0.15376,87958.0,87936.0,0.0113798]
[1766880250715,0.15376,87958.0,87938.0,0.0113795]
[1766880251711,0.0113772,87957.0,87934.0,0.01138]
[1766880252312,0.15376,87958.0,87930.0,0.0113805]
[1766880252517,0.011378,87951.0,87930.0,0.0113805]
[1766880252721,0.05704,87950.0,87930.0,0.0113805]
[1766880252918,0.05704,87950.0,87929.0,0.1207]
[1766880253218,0.0113782,87949.0,87929.0,0.1207]
[1766880253419,0.09672,87948.0,87929.0,0.1207]
[1766880254217,0.09672,87948.0,87930.0,0.0113806]
[1766880254419,0.00017054,87959.0,87929.0,0.1320807]
[1766880254609,0.15376,87958.0,87929.0,0.1320807]
[1766880254809,0.15376,87957.0,87929.0,0.1320807]
[1766880255223,0.15376,87957.0,87938.0,0.0113795]
[1766880255519,0.0113773,87956.0,87932.0,0.0113803]
[1766880255719,0.0113773,87956.0,87934.0,0.01138]
[1766880256321,0.15376,87955.0,87934.0,0.01138]
[1766880260022,0.0113775,87954.0,87934.0,0.01138]
[1766880264134,0.15376,87955.0,87931.0,0.1207]
[1766880264135,0.15376,87955.0,87938.0,0.0113796]
[1766880264429,0.00017054,87959.0,87941.0,0.0113791]
[1766880264725,0.15376,87958.0,87941.0,0.0113791]
[1766880265926,0.15376,87958.0,87938.0,0.0113795]
[1766880267829,0.0113771,87957.0,87935.0,0.0113799]
[1766880268630,0.15376,87958.0,87935.0,0.0113799]
[1766880271633,0.00017054,87959.0,87935.0,0.0113799]
[1766880271842,0.00017054,87959.0,87932.0,0.1207]
[1766880271843,0.05704,87957.0,87937.0,0.0113796]
[1766880277045,0.05704,87957.0,87933.0,0.1207]
[1766880277236,0.00017054,87959.0,87933.0,0.1207]
[1766880277436,0.0113772,87957.0,87934.0,0.0113801]
[1766880278647,0.0113772,87957.0,87936.0,0.0113797]
[1766880278845,0.0113773,87956.0,87933.0,0.1207]
[1766880279546,0.0113773,87956.0,87934.0,0.01138]
[1766880282051,0.0113776,87954.0,87933.0,0.1207]
[1766880283352,0.0113778,87952.0,87933.0,0.1207]
[1766880283553,0.05704,87951.0,87933.0,0.1207]
[1766880285455,0.09672,87950.0,87933.0,0.1207]
[1766880286653,0.09672,87950.0,87932.0,0.0113803]
[1766880287044,0.09672,87950.0,87934.0,0.01138]
[1766880289143,0.09672,87950.0,87933.0,0.0113801]
[1766880290254,0.09672,87950.0,87935.0,0.0113799]
[1766880293957,0.108098,87950.0,87932.0,0.0113803]
[1766880294162,0.09672,87950.0,87932.0,0.0113803]
[1766880294363,0.09672,87950.0,87934.0,0.01138]
[1766880294750,0.09672,87950.0,87936.0,0.0113798]
[1766880297163,0.09672,87950.0,87933.0,0.0113802]
[1766880298059,0.09672,87950.0,87935.0,0.0113799]
[1766880300457,0.15372,87949.0,87939.0,0.0113793]
[1766880300650,0.057,87948.0,87939.0,0.0113793]
[1766880300855,0.057,87947.0,87939.0,0.0113793]
[1766880301054,0.057,87947.0,87934.0,0.01138]
[1766880301356,0.057,87947.0,87936.0,0.0113797]
[1766880301855,0.057,87947.0,87933.0,0.0113801]
[1766880303850,0.057,87947.0,87930.0,0.0113806]
[1766880304252,0.057,87947.0,87931.0,0.1207]
[1766880304763,0.011379,87943.0,87928.0,0.05704]
[1766880304961,0.0113785,87946.0,87928.0,0.05704]
[1766880305565,0.057,87947.0,87929.0,0.0113806]
[1766880305768,0.057,87947.0,87928.0,0.05704]
[1766880305960,0.057,87947.0,87933.0,0.0113802]
[1766880306360,0.057,87947.0,87929.0,0.0113806]
[1766880306663,0.057,87947.0,87928.0,0.05704]
[1766880307471,0.057,87947.0,87933.0,0.0113801]
[1766880308473,0.057,87947.0,87929.0,0.0113806]
[1766880308662,0.057,87947.0,87931.0,0.0113804]
[1766880308860,0.057,87947.0,87933.0,0.0113801]
[1766880310570,0.057,87947.0,87929.0,0.0113807]
[1766880310771,0.057,87947.0,87931.0,0.0113804]
[1766880310969,0.0113794,87940.0,87916.0,0.0826]
[1766880311273,0.0113775,87955.0,87916.0,0.0826]
[1766880311274,0.00017054,87937.0,87920.0,0.0113818]
[1766880311764,0.00017054,87937.0,87924.0,0.0113813]
[1766880311964,0.00017054,87937.0,87921.0,0.0113817]
[1766880312363,0.00017054,87937.0,87916.0,0.0826]
[1766880312364,0.00017054,87937.0,87917.0,0.0113822]
[1766880314570,0.00017054,87937.0,87919.0,0.0113819]
[1766880316272,0.00017054,87937.0,87921.0,0.0113817]
[1766880316475,0.00017054,87937.0,87924.0,0.0113814]
[1766880317871,0.00017054,87937.0,87914.0,0.15372]
[1766880318073,0.00017054,87937.0,87922.0,0.0113815]
[1766880319083,0.00017054,87937.0,87924.0,0.0113813]
[1766880319673,4e-08,87937.0,87914.0,0.15372]
[1766880319874,0.06146892,87944.0,87926.0,0.011381]
[1766880320075,0.15372,87943.0,87926.0,0.011381]
[1766880320874,0.15389054,87943.0,87926.0,0.01155154]
[1766880321674,0.02406055,87942.0,87926.0,0.01155154]
[1766880321875,0.02406055,87941.0,87926.0,0.01155154]
[1766880322077,0.02406055,87940.0,87926.0,0.01155154]
[1766880322278,0.02406055,87939.0,87926.0,0.01155154]
[1766880322476,0.02406055,87938.0,87926.0,0.01155154]
[1766880322676,0.02406055,87937.0,87926.0,0.01155154]
[1766880322874,0.02406055,87936.0,87926.0,0.01155154]
[1766880323074,0.02406055,87935.0,87926.0,0.01155154]
[1766880323279,0.02406055,87934.0,87926.0,0.01155154]
[1766880323473,0.02406055,87933.0,87926.0,0.01155154]
[1766880323672,5.5e-07,87932.0,87926.0,0.01155154]
[1766880323870,0.15389054,87943.0,87926.0,0.01155154]
[1766880324574,0.05717054,87943.0,87926.0,0.01155154]
[1766880324768,0.05717054,87943.0,87929.0,0.0113807]
[1766880326879,0.05717054,87943.0,87931.0,0.0113804]
[1766880327181,0.057,87942.0,87931.0,0.0113804]
[1766880327770,0.057,87941.0,87931.0,0.0113804]
[1766880329574,0.09672,87958.0,87930.0,0.11394397]
[1766880329775,0.18440678,87960.0,87940.0,0.11394397]
[1766880329776,0.057,87960.0,87940.0,0.11394397]
[1766880329975,0.057,87960.0,87950.0,0.11388747]
[1766880330175,0.057,87960.0,87950.0,0.12526537]
[1766880334181,0.057,87960.0,87950.0,0.11388747]
[1766880335178,0.00017054,87964.0,87950.0,0.11388747]
[1766880336688,0.00017054,87964.0,87951.0,0.0113778]
[1766880336884,0.00017054,87964.0,87954.0,0.0113775]
[1766880337085,0.00017054,87964.0,87954.0,0.12526497]
[1766880337481,0.15372,87970.0,87954.0,0.28477494]
[1766880337786,0.057,87973.0,87960.0,0.11388747]
[1766880339184,0.00017054,87975.0,87960.0,0.11388747]
[1766880339380,0.00899054,87975.0,87963.0,0.11388747]
[1766880339692,0.00899054,87975.0,87965.0,0.11388747]
[1766880340082,0.057,87974.0,87960.0,0.11388747]
[1766880340591,0.068375,87974.0,87960.0,0.11388747]
[1766880341289,0.057,87974.0,87960.0,0.11388747]
[1766880341606,0.0113755,87970.0,87954.0,0.057]
[1766880341792,0.0113767,87961.0,87950.0,0.11388747]
[1766880341984,0.0113767,87961.0,87954.0,0.057]
[1766880342379,0.0113762,87964.0,87954.0,0.057]
[1766880344595,0.0113766,87962.0,87954.0,0.057]
[1766880344789,0.0113766,87962.0,87950.0,0.17088747]
[1766880347697,0.0113761,87965.0,87950.0,0.17088747]
[1766880348090,0.0113761,87965.0,87950.0,0.11388747]
[1766880349297,0.0113761,87965.0,87949.0,0.057]
[1766880349597,0.0113761,87965.0,87950.0,0.11388747]
[1766880349792,0.0113764,87963.0,87950.0,0.11388747]
[1766880351692,0.0113765,87962.0,87950.0,0.11388747]
[1766880354000,0.0113761,87965.0,87950.0,0.11388747]
[1766880355298,0.057,87966.0,87950.0,0.11388747]
[1766880356297,0.057,87966.0,87949.0,0.057]
[1766880356503,0.057,87966.0,87950.0,0.11388747]
[1766880359104,0.057,87966.0,87949.0,0.057]
[1766880359305,0.057,87966.0,87950.0,0.11388747]
[1766880359799,0.0113761,87965.0,87949.0,0.057]
[1766880359994,0.11388747,87960.0,87949.0,0.057]
[1766880360300,0.0113764,87963.0,87949.0,0.057]
[1766880360801,0.0113771,87958.0,87945.0,0.057]
[1766880361106,0.0113754,87971.0,87937.0,0.057]
[1766880361107,0.0113774,87956.0,87937.0,0.057]
[1766880361303,0.11388747,87950.0,87933.0,0.0826]
[1766880361609,0.11388747,87950.0,87933.0,0.057]
[1766880361793,0.12526547,87950.0,87933.0,0.057]
[1766880361993,0.12543601,87950.0,87933.0,0.05717054]
[1766880362906,0.0113785,87947.0,87933.0,0.00017054]
[1766880363205,0.11388747,87943.0,87924.0,0.07007627]
[1766880363412,0.0113788,87945.0,87924.0,0.057]
[1766880363598,0.0113788,87945.0,87925.0,0.057]
[1766880363998,0.09672,87946.0,87930.0,0.11388747]
[1766880364200,0.09672,87946.0,87929.0,0.00017054]
[1766880366307,0.09672,87946.0,87930.0,0.11388747]
[1766880366703,0.09672,87946.0,87935.0,0.0113799]
[1766880367005,0.09672,87946.0,87931.0,0.0113804]
[1766880368011,0.09672,87946.0,87933.0,0.0113801]
[1766880371402,0.22777494,87943.0,87906.0,0.0113836]
[1766880371620,0.11388747,87930.0,87909.0,0.0113833]
[1766880371816,0.15372,87929.0,87904.0,0.01149634]
[1766880372006,0.011381,87927.0,87904.0,0.00011244]
[1766880372206,0.11388747,87920.0,87904.0,0.00011244]
[1766880372399,0.057,87919.0,87904.0,0.00011244]
[1766880377612,0.09672,87918.0,87892.0,0.057]
[1766880377816,0.0113823,87917.0,87894.0,0.0113852]
[1766880378013,0.0113826,87915.0,87900.0,0.11388747]
[1766880378209,0.0113826,87915.0,87894.0,0.0113852]
[1766880378411,0.0113826,87915.0,87900.0,0.11388747]
[1766880378610,9.908e-05,87914.0,87900.0,0.11388747]
[1766880378812,0.057,87913.0,87894.0,0.0113852]
[1766880379011,0.057,87913.0,87902.0,0.0113841]
[1766880379214,0.057,87912.0,87900.0,0.11388747]
[1766880379420,0.057,87912.0,87899.0,0.0113846]
[1766880379619,0.057,87912.0,87900.0,0.11388747]
[1766880379815,0.11388747,87910.0,87892.0,0.057]
[1766880381114,0.068383,87912.0,87892.0,0.057]